bitfinex/quotes_ETHUSD_20250219
["timestamp","ask_amount","ask_price","bid_price","bid_amount"]
[1739985565758,0.7999,2716.9,2716.6,0.8632107]
[1739985567842,0.7999,2716.9,2716.4,0.8196]
[1739985568084,1.52615882,2716.6,2716.2,3.6816]
[1739985568289,1.52615882,2716.6,2716.3,3.68147]
[1739985568515,3.6809,2716.8,2716.3,3.68147]
[1739985568516,5.20705882,2716.8,2716.3,3.68147]
[1739985568725,3.681,2716.7,2716.1,3.68171]
[1739985569023,8.88794882,2716.8,2716.2,3.68153]
[1739985569182,8.88794882,2716.8,2716.1,4.497513]
[1739985569383,8.88794882,2716.8,2716.2,3.68161]
[1739985569921,5.20704882,2716.8,2716.2,3.68161]
[1739985570080,8.88793882,2716.8,2716.2,3.68161]
[1739985570621,5.20704882,2716.8,2716.3,3.68147]
[1739985570827,0.7999,2716.9,2716.4,3.68125]
[1739985571612,0.7999,2716.9,2716.5,3.68119]
[1739985572010,4.48058,2716.9,2716.3,5.3260583]
[1739985572315,4.48058,2716.9,2716.4,3.68128]
[1739985574897,3.68085,2716.8,2716.3,5.3260583]
[1739985575123,3.68085,2716.8,2716.2,3.68157]
[1739985575124,0.7665,2716.7,2716.2,3.68157]
[1739985576184,0.7665,2716.7,2716.0,0.7607]
[1739985576399,0.7665,2716.7,2716.4,3.68133]
[1739985576613,0.7665,2716.7,2716.3,3.68144]
[1739985576920,4.44728,2716.9,2716.4,3.68128]
[1739985577904,3.68081,2716.8,2716.4,3.68128]
[1739985578318,0.7665,2716.9,2716.4,3.68128]
[1739985578715,0.7665,2716.9,2716.5,3.6812]
[1739985578916,0.7665,2716.9,2716.5,4.417448]
[1739985579137,0.7665,2716.9,2716.6,3.68105]
[1739985580150,0.7665,2716.9,2716.7,3.68087]
[1739985580362,0.8223,2717.1,2716.8,3.68077]
[1739985580567,3.14541664,2717.4,2716.8,3.68077]
[1739985580568,0.7836,2717.4,2717.0,3.68051]
[1739985580699,0.7836,2717.4,2717.1,4.048421]
[1739985582418,0.7836,2717.4,2717.1,0.368051]
[1739985582615,0.7836,2717.4,2716.9,3.68062]
[1739985582846,0.7836,2717.4,2717.0,3.68052]
[1739985583304,0.7836,2717.4,2716.9,3.68062]
[1739985583730,0.7836,2717.4,2716.9,3.68058]
[1739985585272,4.46358,2717.4,2716.9,3.68058]
[1739985585572,4.46358,2717.4,2716.9,8.174601]
[1739985585872,4.46358,2717.4,2716.9,0.813431]
[1739985586032,4.46358,2717.4,2716.9,3.68058]
[1739985586568,0.7836,2717.4,2716.9,7.36115]
[1739985586812,0.7836,2717.4,2716.9,3.68057]
[1739985587291,4.46368,2717.4,2716.8,4.45362]
[1739985587446,0.7836,2717.4,2716.9,3.68057]
[1739985587641,0.7836,2717.4,2716.9,4.125917]
[1739985587881,4.46359,2717.4,2716.9,7.806507]
[1739985588060,4.46359,2717.4,2716.9,4.125917]
[1739985589481,0.7836,2717.4,2717.0,3.6805]
[1739985589681,0.7836,2717.4,2716.9,4.125917]
[1739985590269,0.7836,2717.4,2716.9,7.806517]
[1739985590468,0.7836,2717.4,2717.0,0.8579417]
[1739985591478,4.46359,2717.4,2717.0,0.8579417]
[1739985591677,4.46359,2717.4,2716.9,4.125917]
[1739985591977,4.46359,2717.4,2716.9,0.445347]
[1739985592461,4.46359,2717.4,2716.9,4.125947]
[1739985593176,0.7836,2717.4,2716.9,4.125947]
[1739985593386,4.46361,2717.4,2716.9,4.125947]
[1739985593552,4.46361,2717.4,2716.9,3.6806]
[1739985593739,4.46361,2717.4,2716.8,3.68077]
[1739985593740,3.68016,2717.3,2716.8,3.68077]
[1739985594583,0.7836,2717.4,2716.9,3.68059]
[1739985594796,0.7836,2717.4,2717.0,3.68049]
[1739985594950,0.7836,2717.4,2716.9,3.68059]
[1739985595151,4.46366,2717.4,2716.9,3.68059]
[1739985595352,3.68015,2717.3,2716.8,3.68078]
[1739985595654,0.7836,2717.4,2716.9,3.68063]
[1739985595855,4.46359,2717.4,2716.9,3.68057]
[1739985596087,4.46359,2717.4,2716.8,4.497846]
[1739985596264,4.46359,2717.4,2716.8,0.817066]
[1739985596569,4.46359,2717.4,2716.6,0.8089]
[1739985596570,4.46359,2717.4,2716.9,3.68065]
[1739985597190,3.68012,2717.3,2716.8,3.68078]
[1739985597511,4.48428,2717.2,2716.7,3.68092]
[1739985597695,4.48428,2717.2,2716.7,3.68087]
[1739985598573,4.48428,2717.2,2716.6,0.8089]
[1739985598678,4.48428,2717.2,2716.6,4.48995]
[1739985598882,6.00905191,2717.2,2716.7,3.68092]
[1739985599696,6.9779691,2717.2,2716.7,3.68092]
[1739985599895,3.68053,2717.0,2716.6,0.8089]
[1739985600055,3.68042,2717.1,2716.5,8.098458]
[1739985600251,6.00905191,2717.2,2716.5,4.417338]
[1739985600252,6.00903191,2717.2,2716.5,4.417338]
[1739985600567,2.32877191,2717.2,2716.8,3.68071]
[1739985600880,3.8319,2717.4,2716.9,7.36116]
[1739985601095,0.8319,2717.4,2717.0,3.68052]
[1739985601295,5.36,2717.6,2717.3,3.68012]
[1739985601598,5.36,2717.6,2717.3,3.68006]
[1739985603546,0.8319,2717.8,2717.3,3.68004]
[1739985603700,0.8319,2717.8,2717.4,3.67997]
[1739985603907,0.8319,2717.8,2717.2,0.81589941]
[1739985604233,4.51136,2717.8,2717.3,3.6801]
[1739985604432,5.36,2717.9,2717.5,3.67974]
[1739985605231,5.36,2717.9,2717.6,3.6797]
[1739985605411,3.8064,2718.0,2717.6,3.6797]
[1739985606019,0.8064,2718.0,2717.7,3.67956]
[1739985606391,0.7908,2718.3,2717.8,3.67936]
[1739985606622,0.7908,2718.3,2717.8,7.35874]
[1739985607390,0.7908,2718.3,2717.8,3.67936]
[1739985608035,0.7908,2718.3,2717.9,3.6792]
[1739985608504,0.7908,2718.3,2718.0,3.67912]
[1739985608705,4.50928,2718.5,2717.9,3.6792]
[1739985609604,3.67866,2718.4,2717.8,5.3353337]
[1739985609931,3.6787,2718.4,2717.8,1.6559237]
[1739985610131,3.6787,2718.4,2717.9,3.6793]
[1739985610545,3.67878,2718.3,2717.8,0.7656]
[1739985610689,3.6787,2718.4,2717.8,4.44501]
[1739985610890,7.35744,2718.4,2717.8,4.44501]
[1739985611132,3.67863,2718.4,2717.8,4.44497]
[1739985611439,7.35734,2718.4,2717.8,4.44497]
[1739985611731,4.50444,2718.3,2717.7,3.67957]
[1739985611937,4.50444,2718.3,2717.8,3.67937]
[1739985612119,7.60555494,2718.5,2717.9,4.47454]
[1739985612288,3.67864,2718.4,2717.9,0.7953]
[1739985612488,3.67886,2718.3,2717.9,0.7953]
[1739985612730,3.92698494,2718.5,2717.9,0.7953]
[1739985613030,7.60557494,2718.5,2717.9,4.47455]
[1739985613233,0.7838,2718.5,2718.0,4.130204]
[1739985614000,4.46236,2718.5,2718.0,4.130204]
[1739985614198,0.7838,2718.5,2718.0,0.451134]
[1739985614430,3.67871,2718.4,2717.9,0.7953]
[1739985614852,3.67871,2718.4,2717.9,4.47454]
[1739985615039,4.4623,2718.5,2717.9,0.7953]
[1739985615432,3.67863,2718.4,2717.9,4.47456]
[1739985616647,4.4623,2718.5,2717.9,0.7953]
[1739985616648,3.67884,2718.3,2717.9,0.7953]
[1739985617912,7.60556494,2718.5,2717.9,0.7953]
[1739985618113,3.67865,2718.4,2717.9,0.7953]
[1739985618326,3.67877,2718.3,2717.9,0.7953]
[1739985620266,7.35764,2718.3,2717.9,0.7953]
[1739985620418,3.67877,2718.3,2717.9,0.7953]
[1739985622493,3.67877,2718.3,2717.0,5.09844363]
[1739985622494,0.7614,2717.9,2716.8,0.8124]
[1739985622802,0.7614,2717.4,2716.8,4.49313]
[1739985622953,4.44139,2717.4,2716.8,4.49313]
[1739985623460,3.68013,2717.3,2716.8,0.8124]
[1739985623660,3.14318494,2717.2,2716.5,3.68115]
[1739985623888,6.82343494,2717.2,2716.6,0.73624]
[1739985624394,6.82343494,2717.2,2716.6,4.41729]
[1739985624700,3.14318494,2717.2,2716.6,0.73624]
[1739985625001,3.68012,2717.3,2716.2,4.44911]
[1739985625002,7.64591494,2716.9,2716.2,4.44911]
[1739985625205,3.96518494,2716.9,2716.2,4.44911]
[1739985625890,3.6808,2716.8,2716.2,0.7676]
[1739985626095,3.96518494,2716.9,2716.2,4.44919]
[1739985626265,3.68081,2716.8,2716.2,0.7676]
[1739985626467,7.36169,2716.8,2716.2,1.212539]
[1739985626678,7.3617,2716.8,2716.2,1.212539]
[1739985627054,3.68095,2716.7,2716.2,1.212539]
[1739985627250,7.36172,2716.8,2716.2,1.212539]
[1739985627454,3.68081,2716.8,2716.2,1.212539]
[1739985627868,3.68094,2716.7,2716.2,1.212539]
[1739985628719,3.68081,2716.8,2716.2,1.212539]
[1739985628918,3.68094,2716.7,2716.2,1.212539]
[1739985630362,3.68094,2716.7,2716.3,0.4894159]
[1739985630703,3.68087,2716.8,2716.3,0.4894159]
[1739985630938,7.64585494,2716.9,2716.3,0.4894159]
[1739985631203,3.68102,2716.7,2716.2,0.7676]
[1739985631606,3.68102,2716.7,2716.2,4.4492]
[1739985632200,7.64593494,2716.9,2716.2,4.44913]
[1739985632360,5.36,2717.1,2716.5,3.68107]
[1739985632583,5.36,2717.1,2715.9,3.682]
[1739985632584,5.36,2717.1,2716.8,3.68079]
[1739985632785,3.67976,2717.6,2717.0,3.68052]
[1739985633019,4.47237,2717.7,2717.1,3.68038]
[1739985633317,6.6798,2717.6,2716.9,0.769]
[1739985633517,3.68013,2717.3,2717.0,0.813047]
[1739985633750,3.67998,2717.4,2716.9,0.769]
[1739985634378,7.36007,2717.4,2716.9,0.769]
[1739985634578,7.36008,2717.4,2716.9,0.769]
[1739985634819,3.67998,2717.4,2716.9,0.769]
[1739985634995,3.14318494,2717.5,2716.9,1.213972]
[1739985635195,3.14318494,2717.5,2716.9,4.894622]
[1739985635891,12.18272494,2717.8,2717.2,7.36041]
[1739985636092,12.18272494,2717.8,2717.3,0.7951]
[1739985636299,0.07046194,2717.7,2717.3,0.7951]
[1739985636629,0.07046194,2717.7,2717.3,1.242627]
[1739985636839,3.75005194,2717.7,2717.3,1.242627]
[1739985636989,0.07046194,2717.7,2717.3,1.242627]
[1739985637187,12.18270494,2717.8,2717.3,1.242627]
[1739985637515,0.07069565,2717.7,2717.3,1.242627]
[1739985637729,9.03944,2717.8,2717.4,0.8602937]
[1739985637926,0.07050347,2717.7,2717.3,0.7951]
[1739985638139,12.71896,2717.8,2717.3,0.7951]
[1739985638316,6.89367036,2717.7,2717.3,0.7951]
[1739985638628,3.67999,2717.4,2716.9,0.7566]
[1739985638831,6.82317494,2717.4,2716.7,0.7566]
[1739985639040,3.68025,2717.2,2716.7,0.7566]
[1739985639247,3.68047,2717.1,2716.7,0.7566]
[1739985639390,6.75074766,2717.3,2716.7,0.7566]
[1739985639834,6.82359494,2717.1,2716.7,0.7566]
[1739985640065,0.8239,2717.0,2716.4,3.68124]
[1739985640324,0.07047629,2717.0,2716.5,4.5032]
[1739985640703,0.07047629,2717.0,2716.6,3.68106]
[1739985640905,7.50424,2717.2,2716.6,3.68106]
[1739985641131,7.50424,2717.2,2716.5,0.822]
[1739985641132,3.8239,2717.2,2716.5,0.822]
[1739985641346,0.0705387,2717.1,2716.7,3.68087]
[1739985642406,0.0705387,2717.1,2716.8,3.6808]
[1739985642592,0.0705387,2717.1,2717.0,3.68052]
[1739985642834,4.51033,2718.0,2717.4,3.6799]
[1739985642993,0.06809561,2717.9,2717.6,3.67963]
[1739985643220,7.65314494,2718.3,2717.7,3.67956]
[1739985643221,0.8311,2718.3,2717.7,3.67956]
[1739985643430,10.63510649,2718.5,2717.8,4.47045]
[1739985643737,1.14662065,2718.4,2717.9,3.67919]
[1739985644110,4.82525065,2718.4,2717.9,3.67919]
[1739985645204,5.36,2718.5,2717.9,3.67919]
[1739985645642,9.0385,2718.5,2717.9,3.67919]
[1739985646436,3.67865,2718.4,2717.8,0.7911]
[1739985646940,3.67892,2718.2,2717.8,0.7911]
[1739985647242,0.06763259,2718.1,2717.8,0.7911]
[1739985647800,0.06763259,2718.1,2717.6,4.43873]
[1739985648136,3.67887,2718.3,2717.7,4.491379]
[1739985648137,0.06754574,2718.0,2717.7,4.491379]
[1739985648438,3.67887,2718.3,2717.7,4.491379]
[1739985648639,0.06745889,2717.9,2717.7,4.491379]
[1739985648834,7.35771,2718.3,2717.7,4.491379]
[1739985649045,0.06737203,2717.8,2717.7,0.811849]
[1739985649451,3.67892,2718.2,2717.7,0.811849]
[1739985649611,3.67892,2718.2,2717.6,4.43877]
[1739985649612,0.06737203,2717.8,2717.6,0.7591]
[1739985649814,4.46922,2718.1,2717.6,0.7591]
[1739985650127,3.67912,2718.1,2717.6,0.7591]
[1739985650314,0.06754574,2718.0,2717.6,0.7591]
[1739985652366,0.06754574,2718.0,2717.6,4.4388]
[1739985652581,0.06754574,2718.0,2717.6,5.24982062]
[1739985652743,3.74672574,2718.0,2717.6,0.7591]
[1739985652937,3.67937,2717.9,2717.3,3.68002]
[1739985653134,0.06533703,2717.8,2717.4,0.8276]
[1739985654077,0.06533703,2717.8,2717.4,4.50758]
[1739985654287,0.06533703,2717.8,2717.5,3.67975]
[1739985654583,5.36,2718.0,2717.5,4.24224764]
[1739985654764,0.06542389,2717.9,2717.5,3.67975]
[1739985654938,0.06542389,2717.9,2717.7,0.7784]
[1739985656176,0.06542389,2717.9,2717.7,4.4579]
[1739985657182,0.06542389,2717.9,2717.7,0.7784]
[1739985657471,0.06542389,2717.9,2717.4,3.67995]
[1739985657776,3.67967,2717.7,2717.0,3.68052]
[1739985657974,0.06573875,2717.6,2717.1,3.6803]
[1739985658553,0.06573875,2717.6,2717.2,3.68024]
[1739985658992,7.57713494,2717.8,2717.2,3.68024]
[1739985659175,7.57713494,2717.8,2717.4,3.67995]
[1739985659176,0.06582562,2717.7,2717.4,3.67995]
[1739985659395,0.7545,2717.8,2717.3,0.7762]
[1739985659600,0.06559777,2717.7,2717.3,4.4563]
[1739985659796,0.7545,2717.8,2717.3,4.4563]
[1739985660011,0.06559777,2717.7,2717.3,5.269959]
[1739985660183,3.67937,2717.9,2717.3,5.269959]
[1739985660372,3.74513463,2717.8,2717.3,4.4563]
[1739985660572,0.06568463,2717.8,2717.3,4.4563]
[1739985660879,3.67938,2717.9,2717.3,4.4563]
[1739985661066,0.06559777,2717.7,2717.3,4.4563]
[1739985661262,3.74515463,2717.8,2717.3,4.4563]
[1739985661493,0.06551089,2717.6,2717.3,4.4563]
[1739985661697,0.06559777,2717.7,2717.3,4.4563]
[1739985661888,0.06542402,2717.5,2717.3,4.4563]
[1739985662093,3.67947,2717.8,2717.3,5.269964]
[1739985662295,0.06533713,2717.4,2717.3,4.4563]
[1739985662475,3.67966,2717.7,2717.3,0.7762]
[1739985662675,3.67966,2717.7,2717.1,3.68033]
[1739985662676,0.06533713,2717.4,2717.0,4.44894]
[1739985662882,0.8209,2717.6,2717.0,4.44894]
[1739985663086,0.06527872,2717.3,2716.7,4.44943]
[1739985663281,7.36015,2717.4,2716.7,4.44943]
[1739985663497,0.06506083,2717.2,2716.7,4.44943]
[1739985663707,0.06514772,2717.3,2716.7,4.44943]
[1739985663920,0.06497392,2717.1,2716.7,4.44943]
[1739985664107,4.56623083,2717.2,2716.7,3.68091]
[1739985664289,0.06488701,2717.0,2716.7,3.68091]
[1739985664510,0.06497392,2717.1,2716.7,3.68091]
[1739985664716,0.06480009,2716.9,2716.7,3.68091]
[1739985664912,4.50116,2717.2,2716.7,3.68085]
[1739985665218,4.50116,2717.2,2716.7,7.36169]
[1739985665426,0.06497392,2717.1,2716.7,7.36169]
[1739985665593,0.06497392,2717.1,2716.7,3.68084]
[1739985665800,0.06497392,2717.1,2716.8,3.68079]
[1739985666000,0.06497392,2717.1,2716.9,0.7685]
[1739985666194,3.68007,2717.4,2716.9,0.7685]
[1739985666483,0.06514772,2717.3,2716.9,0.7685]
[1739985666983,3.74527772,2717.3,2716.9,0.7685]
[1739985667622,0.06514772,2717.3,2716.9,0.7685]
[1739985668215,3.74528772,2717.3,2716.9,0.7685]
[1739985669429,3.68026,2717.2,2716.7,4.43679]
[1739985669601,3.74532772,2717.3,2716.8,3.68077]
[1739985669932,4.66118312,2717.3,2716.8,3.68077]
[1739985671051,3.68026,2717.2,2716.7,4.43676]
[1739985671641,0.06471826,2717.1,2716.7,4.43676]
[1739985671846,0.06471826,2717.1,2716.8,3.68079]
[1739985672245,0.06471826,2717.1,2716.8,7.36151]
[1739985672446,0.06471826,2717.1,2716.8,3.68072]
[1739985672649,3.68017,2717.3,2716.8,3.68072]
[1739985672825,0.06463134,2717.0,2716.8,3.68072]
[1739985673003,3.68017,2717.3,2716.8,3.68072]
[1739985673204,0.06480517,2717.2,2716.8,3.68072]
[1739985673404,3.68033,2717.2,2716.7,4.43681]
[1739985673605,0.06471826,2717.1,2716.7,4.43681]
[1739985674331,3.68075,2716.9,2716.5,0.8136]
[1739985674530,3.68075,2716.9,2716.3,4.49506]
[1739985674531,4.49477,2716.8,2716.3,4.49506]
[1739985674846,8.24014749,2716.8,2716.3,0.8136]
[1739985675142,3.68095,2716.7,2716.1,4.45224]
[1739985675343,3.68095,2716.7,2716.1,9.484345]
[1739985675638,0.06375769,2716.6,2716.2,3.68159]
[1739985675845,0.06375769,2716.6,2716.1,5.802595]
[1739985676144,0.06375769,2716.6,2716.2,3.68158]
[1739985676350,0.06375769,2716.6,2716.3,3.68147]
[1739985676649,4.4947,2716.8,2716.3,3.68147]
[1739985676934,0.06112843,2716.5,2716.3,3.68147]
[1739985677149,4.4947,2716.8,2716.3,3.68147]
[1739985677339,0.06104147,2716.4,2716.3,3.68147]
[1739985677526,4.4947,2716.8,2716.3,3.68147]
[1739985678057,0.06130232,2716.7,2716.4,3.68134]
[1739985678283,0.06130232,2716.7,2716.1,4.45223]
[1739985678434,0.8139,2716.8,2716.4,3.68131]
[1739985678632,0.06121538,2716.6,2716.5,3.68107]
[1739985678829,6.1673,2717.0,2716.5,3.68107]
[1739985679014,0.06083261,2716.6,2716.4,3.68132]
[1739985679218,9.84793,2717.0,2716.4,3.68132]
[1739985679466,0.06109341,2716.9,2716.4,3.68126]
[1739985679766,0.06109341,2716.9,2716.5,3.68117]
[1739985680066,0.06109341,2716.9,2716.6,3.681]
[1739985681365,0.06109341,2716.9,2716.5,3.68119]
[1739985681522,0.06109341,2716.9,2716.5,4.493642]
[1739985681901,0.06109341,2716.9,2716.6,3.68106]
[1739985682187,0.06109341,2716.9,2716.5,4.493652]
[1739985683361,0.06109341,2716.9,2716.6,3.68106]
[1739985683563,0.06109341,2716.9,2716.5,0.812452]
[1739985683936,3.74183341,2716.9,2716.3,4.44335]
[1739985684143,0.8073,2716.7,2716.3,3.68135]
[1739985684349,0.05738739,2716.6,2716.3,3.68135]
[1739985684654,0.05738739,2716.6,2716.4,3.68132]
[1739985686082,0.05738739,2716.6,2716.4,3.68125]
[1739985686259,0.05738739,2716.6,2716.5,4.4977]
[1739985686649,3.8262,2717.1,2716.5,4.4977]
[1739985686848,0.05737029,2716.6,2716.5,4.4977]
[1739985687045,3.68066,2716.9,2716.5,0.8165]
[1739985687246,0.05737029,2716.6,2716.3,3.68139]
[1739985687456,0.7644,2716.7,2716.3,3.68139]
[1739985687677,0.05728334,2716.5,2716.3,3.68139]
[1739985687982,0.05719639,2716.4,2716.1,3.68173]
[1739985688177,4.44538,2716.7,2716.1,4.496382]
[1739985688326,4.44538,2716.7,2716.2,3.68154]
[1739985688661,0.05737029,2716.6,2716.2,3.68154]
[1739985689180,0.05737029,2716.6,2716.2,3.68152]
[1739985689373,0.05737029,2716.6,2716.3,3.68147]
[1739985689985,0.05737029,2716.6,2716.2,3.68155]
[1739985690337,0.05737029,2716.6,2716.2,7.36308]
[1739985690740,0.05737029,2716.6,2716.2,7.36307]
[1739985690962,0.05737029,2716.6,2716.2,3.68153]
[1739985691163,0.05737029,2716.6,2716.2,7.36307]
[1739985691578,0.05737029,2716.6,2716.2,3.68153]
[1739985691874,0.05737029,2716.6,2716.3,3.68142]
[1739985693278,0.05737029,2716.6,2716.2,4.2094782]
[1739985693451,0.05737029,2716.6,2716.2,3.68156]
[1739985693781,0.05737029,2716.6,2716.1,3.68171]
[1739985693933,0.05737029,2716.6,2716.3,3.68147]
[1739985697688,0.05737029,2716.6,2716.2,3.6815]
[1739985697889,0.05737029,2716.6,2716.0,4.46486]
[1739985697890,3.73845029,2716.6,2716.0,4.46486]
[1739985698053,3.68158,2716.3,2715.7,0.7945]
[1739985698381,4.5119,2716.1,2715.6,3.6824]
[1739985698587,0.04983675,2716.0,2715.6,3.6824]
[1739985699081,0.04983675,2716.0,2715.5,0.7945]
[1739985699082,0.04983675,2716.0,2715.4,3.68261]
[1739985699282,0.8301,2715.9,2715.4,3.68261]
[1739985699488,0.8301,2715.9,2715.3,0.7945]
[1739985699489,0.8301,2715.9,2715.3,4.47722]
[1739985699642,0.04966276,2715.8,2715.4,3.68259]
[1739985700683,0.04966276,2715.8,2715.3,0.7945]
[1739985700886,4.18801304,2715.8,2715.1,9.82213]
[1739985701095,0.7517,2715.7,2715.1,4.45213]
[1739985701394,6.82562494,2715.6,2714.9,4.45237]
[1739985701690,6.8742639,2715.6,2714.9,4.45237]
[1739985701842,10.5567939,2715.6,2714.9,4.45237]
[1739985702189,10.5567939,2715.6,2714.7,3.68355]
[1739985702190,3.14318494,2715.3,2714.7,4.45265]
[1739985702391,3.14318494,2715.3,2714.7,8.13623]
[1739985702694,0.04580325,2715.2,2714.7,4.45265]
[1739985703568,0.04580325,2715.2,2714.8,3.68351]
[1739985703891,3.14318494,2715.3,2714.8,3.68343]
[1739985704047,0.04571619,2715.1,2714.8,3.68343]
[1739985704381,3.14318494,2715.3,2714.8,3.68343]
[1739985704540,0.04562912,2715.0,2714.7,4.45265]
[1739985704744,3.14318494,2715.3,2714.8,3.6835]
[1739985704978,0.04580325,2715.2,2714.8,3.6835]
[1739985705293,6.82602494,2715.3,2714.7,8.13622]
[1739985705579,0.04571619,2715.1,2714.7,8.13622]
[1739985705788,0.04562912,2715.0,2714.8,3.6835]
[1739985705940,6.82602494,2715.3,2714.8,3.6835]
[1739985705941,3.14318494,2715.3,2714.8,3.6835]
[1739985706353,3.14318494,2715.3,2714.7,4.45265]
[1739985706354,0.04580325,2715.2,2714.7,3.68355]
[1739985706591,0.8138,2715.1,2714.5,3.68383]
[1739985706890,0.8138,2714.9,2714.2,0.7677]
[1739985707091,0.8138,2714.9,2714.2,3.68428]
[1739985707092,3.14318494,2714.7,2714.2,3.68428]
[1739985707444,0.04491285,2714.6,2714.3,3.68419]
[1739985707882,0.86731285,2714.6,2714.3,3.6841]
[1739985709241,0.86731285,2714.6,2714.2,3.68431]
[1739985709449,3.68399,2714.5,2713.9,4.48048]
[1739985709676,3.86731285,2714.6,2713.7,0.7958]
[1739985709944,0.813,2714.2,2713.7,4.48071]
[1739985710269,0.04426142,2714.1,2713.5,4.46566]
[1739985710468,0.04426142,2714.1,2713.7,3.68493]
[1739985710692,0.04426142,2714.1,2713.8,3.68484]
[1739985711999,0.04426142,2714.1,2713.9,3.68463]
[1739985712587,0.04426142,2714.1,2713.8,3.68484]
[1739985713090,0.04426142,2714.1,2713.9,3.68466]
[1739985713293,0.04426142,2714.1,2714.0,4.50789]
[1739985713496,0.8145,2714.5,2714.0,0.8233]
[1739985713648,0.8145,2714.5,2714.1,3.68443]
[1739985714365,6.82724494,2714.4,2713.8,3.68482]
[1739985714565,0.76417449,2714.3,2713.7,0.8233]
[1739985714780,3.14318494,2714.4,2714.0,3.68459]
[1739985714968,0.8145,2714.5,2714.0,3.68459]
[1739985715696,4.49845,2714.5,2714.0,3.68459]
[1739985716351,3.68411,2714.4,2713.8,3.68486]
[1739985716531,4.49843,2714.5,2713.9,3.68466]
[1739985716821,0.04371466,2714.3,2714.0,3.68459]
[1739985717028,0.04362754,2714.2,2714.0,3.68459]
[1739985717527,0.04354042,2714.1,2714.0,3.68459]
[1739985717928,1.654224,2714.4,2714.0,3.68459]
[1739985718125,0.04354042,2714.1,2714.0,3.68459]
[1739985718292,3.8145,2714.5,2714.0,3.68459]
[1739985718506,5.41464749,2714.5,2714.2,3.68425]
[1739985718701,3.8145,2714.5,2714.2,3.68425]
[1739985719095,3.8145,2714.5,2714.1,7.36873]
[1739985719287,3.8145,2714.5,2714.1,3.68435]
[1739985720236,0.04388172,2714.4,2714.1,3.68435]
[1739985721024,0.04388172,2714.4,2714.3,3.68419]
[1739985721233,0.04388172,2714.4,2714.3,4.42104]
[1739985721386,5.36,2714.6,2714.5,3.68391]
[1739985721585,0.71399496,2714.6,2714.5,3.68391]
[1739985722036,0.776,2714.5,2713.9,3.68462]
[1739985722194,0.776,2714.5,2713.7,4.46434]
[1739985722195,7.38854059,2714.4,2713.7,4.46434]
[1739985722384,0.8274,2714.3,2713.6,7.3701]
[1739985722589,3.68434,2714.2,2713.6,7.3701]
[1739985722897,0.04365084,2714.1,2713.6,3.68504]
[1739985723102,0.04365084,2714.1,2713.7,3.68498]
[1739985723317,4.51159,2714.3,2713.7,3.68498]
[1739985723629,0.04185964,2714.0,2713.5,4.43947]
[1739985723878,0.04177252,2713.9,2713.6,3.685]
[1739985723996,1.18562184,2714.2,2713.7,3.68496]
[1739985724331,0.04194676,2714.1,2713.7,3.68496]
[1739985725115,0.04194676,2714.1,2713.8,3.68484]
[1739985725633,0.796,2714.0,2713.4,3.68537]
[1739985725803,4.48067,2714.0,2713.4,3.68537]
[1739985726129,0.04177252,2713.9,2713.4,3.68537]
[1739985726827,0.04177252,2713.9,2713.4,7.37066]
[1739985727036,0.04177252,2713.9,2713.5,3.68527]
[1739985727513,0.04177252,2713.9,2713.6,3.68506]
[1739985727906,0.04177252,2713.9,2713.8,3.68486]
[1739985728106,0.7666,2714.2,2713.7,3.685]
[1739985728302,0.03997253,2713.9,2713.8,3.68474]
[1739985728506,0.7666,2714.2,2713.9,3.68465]
[1739985728706,0.67,2714.0,2713.8,3.68474]
[1739985729012,0.67,2714.0,2713.8,7.36953]
[1739985729949,0.7666,2714.2,2714.0,3.68451]
[1739985730110,4.3257835,2714.4,2714.0,3.68451]
[1739985731048,4.3257835,2714.4,2713.9,3.68473]
[1739985731753,0.04025246,2714.3,2713.9,4.51043]
[1739985732116,0.04025246,2714.3,2713.8,3.68485]
[1739985732312,3.72444246,2714.3,2713.6,4.44732]
[1739985732651,0.8161,2714.2,2713.7,3.68499]
[1739985732823,0.0400554,2714.1,2713.7,3.68499]
[1739985733026,0.0400554,2714.1,2713.8,3.68485]
[1739985734949,0.0400554,2714.1,2713.8,3.68479]
[1739985735139,0.0400554,2714.1,2714.0,3.68459]
[1739985735527,3.8104,2714.4,2713.9,4.43762]
[1739985735760,0.0400097,2714.1,2713.9,4.43762]
[1739985735927,7.49449,2714.4,2713.9,3.68472]
[1739985736127,0.03952981,2714.0,2713.9,3.68472]
[1739985736354,7.49449,2714.4,2713.9,3.68472]
[1739985736540,0.03973021,2714.0,2713.9,3.68472]
[1739985736720,9.148331,2714.4,2713.9,3.68472]
[1739985736721,5.464241,2714.4,2713.9,7.36944]
[1739985736926,5.464241,2714.4,2713.9,3.68472]
[1739985736927,0.03975476,2714.0,2713.9,3.68472]
[1739985737253,0.8104,2714.7,2714.3,3.68406]
[1739985737454,0.8104,2714.9,2714.2,4.43712]
[1739985737615,0.67,2714.4,2714.3,3.6841]
[1739985738222,3.95358494,2714.9,2714.5,3.68386]
[1739985738556,5.36,2715.0,2714.6,3.68376]
[1739985739359,5.36,2715.0,2714.2,0.7529]
[1739985739360,0.0404712,2714.9,2714.3,3.68406]
[1739985739653,0.0404712,2714.9,2714.2,4.4372]
[1739985739842,0.0404712,2714.9,2714.4,3.68398]
[1739985740046,0.0404712,2714.9,2714.4,7.36795]
[1739985740379,3.68366,2714.7,2714.1,3.68442]
[1739985740525,3.68366,2714.7,2714.0,0.7951]
[1739985740526,3.97328494,2714.6,2713.8,1.07429493]
[1739985740729,3.97328494,2714.6,2713.6,9.05513]
[1739985740730,6.82744494,2714.3,2713.6,9.05513]
[1739985740962,0.7874,2714.2,2713.7,3.68498]
[1739985741260,0.82794325,2714.2,2713.7,3.68498]
[1739985743061,0.82794325,2714.2,2713.7,3.68498]